[Event "Live Chess"]
[Site "Chess.com"]
[Date "2023.05.20"]
[Round "-"]
[White "reshmiramachandran"]
[Black "Ayush_prahlad_Gupta"]
[Result "0-1"]
[WhiteElo "515"]
[BlackElo "1786"]
[TimeControl "300"]
[EndTime "12:48:09 PDT"]
[Termination "Ayush_prahlad_Gupta won by checkmate"]

1. d4 {[%clk 0:04:50.5]} 1... e5 {[%clk 0:04:59.9]} 2. dxe5 {[%clk 0:04:48.9]}
2... d6 {[%clk 0:04:58.8]} 3. Nf3 {[%clk 0:04:39.3]} 3... Nc6 {[%clk 0:04:44]}
4. Bg5 {[%clk 0:04:37.4]} 4... f6 {[%clk 0:04:40.7]} 5. Bxf6 {[%clk 0:04:30.4]}
5... Nxf6 {[%clk 0:04:39.7]} 6. Nc3 {[%clk 0:04:24.7]} 6... dxe5 {[%clk
0:04:37.5]} 7. Qxd8+ {[%clk 0:04:19.6]} 7... Nxd8 {[%clk 0:04:37.4]} 8. Nxe5
{[%clk 0:04:17.7]} 8... Be6 {[%clk 0:04:30.7]} 9. O-O-O {[%clk 0:04:14.6]} 9...
Nc6 {[%clk 0:04:29.9]} 10. Nxc6 {[%clk 0:04:12.7]} 10... bxc6 {[%clk 0:04:29.8]}
11. e3 {[%clk 0:04:07.3]} 11... Bb4 {[%clk 0:04:06.3]} 12. a3 {[%clk 0:04:04.3]}
12... Bxc3 {[%clk 0:04:02.5]} 13. bxc3 {[%clk 0:04:02]} 13... Rb8 {[%clk
0:04:02.4]} 14. Bd3 {[%clk 0:03:57.1]} 14... Nd5 {[%clk 0:04:01.9]} 15. c4
{[%clk 0:03:54.4]} 15... Nc3 {[%clk 0:04:00.7]} 16. Kd2 {[%clk 0:03:38.8]} 16...
O-O {[%clk 0:03:40.2]} 17. Kxc3 {[%clk 0:03:36.7]} 17... Rxf2 {[%clk 0:03:31.5]}
18. Rdf1 {[%clk 0:03:34]} 18... Rxg2 {[%clk 0:03:29.3]} 19. Rfg1 {[%clk
0:03:27.8]} 19... Rf2 {[%clk 0:03:25.6]} 20. h4 {[%clk 0:03:22.9]} 20... Re8
{[%clk 0:03:17.4]} 21. h5 {[%clk 0:03:19.6]} 21... h6 {[%clk 0:03:15.8]} 22. Rg3
{[%clk 0:03:12.5]} 22... Bf7 {[%clk 0:03:14.7]} 23. Rhg1 {[%clk 0:03:09]} 23...
Bxh5 {[%clk 0:03:08.1]} 24. Rxg7+ {[%clk 0:03:07.3]} 24... Kf8 {[%clk
0:03:06.9]} 25. Rg8+ {[%clk 0:03:04.9]} 25... Ke7 {[%clk 0:03:05.8]} 26. R1g7+
{[%clk 0:03:00.4]} 26... Kf6 {[%clk 0:03:02.9]} 27. Rxe8 {[%clk 0:02:46.8]}
27... Kxg7 {[%clk 0:03:00.9]} 28. Re7+ {[%clk 0:02:44.7]} 28... Kf6 {[%clk
0:02:58.9]} 29. Rxc7 {[%clk 0:02:43.3]} 29... Bf3 {[%clk 0:02:54.6]} 30. Rxa7
{[%clk 0:02:40.2]} 30... h5 {[%clk 0:02:53.1]} 31. Ra5 {[%clk 0:02:36.3]} 31...
h4 {[%clk 0:02:50.5]} 32. Rf5+ {[%clk 0:02:33.4]} 32... Ke6 {[%clk 0:02:48.6]}
33. Rf4 {[%clk 0:02:30.4]} 33... h3 {[%clk 0:02:47]} 34. Rh4 {[%clk 0:02:27.4]}
34... h2 {[%clk 0:02:42.2]} 35. Rh6+ {[%clk 0:02:23.8]} 35... Kd7 {[%clk
0:02:39.6]} 36. Bf5+ {[%clk 0:02:19.9]} 36... Kc7 {[%clk 0:02:37.2]} 37. Rh7+
{[%clk 0:02:15.2]} 37... Kb6 {[%clk 0:02:35.3]} 38. c5+ {[%clk 0:02:06.8]} 38...
Kxc5 {[%clk 0:02:33.8]} 39. a4 {[%clk 0:01:59.1]} 39... h1=Q {[%clk 0:02:30.1]}
40. Rxh1 {[%clk 0:01:56.5]} 40... Bxh1 {[%clk 0:02:30]} 41. a5 {[%clk
0:01:53.3]} 41... Rxf5 {[%clk 0:02:28.8]} 42. a6 {[%clk 0:01:51.9]} 42... Rf8
{[%clk 0:02:27.8]} 43. a7 {[%clk 0:01:50.3]} 43... Ra8 {[%clk 0:02:27.7]} 44. e4
{[%clk 0:01:48]} 44... Rxa7 {[%clk 0:02:27.6]} 45. e5 {[%clk 0:01:46.3]} 45...
Bd5 {[%clk 0:02:27.5]} 46. e6 {[%clk 0:01:44.3]} 46... Bxe6 {[%clk 0:02:26.5]}
47. Kd3 {[%clk 0:01:42.1]} 47... Ra4 {[%clk 0:02:25.8]} 48. c3 {[%clk 0:01:41]}
48... Rc4 {[%clk 0:02:24.9]} 49. Kc2 {[%clk 0:01:38.4]} 49... Bf5+ {[%clk
0:02:24]} 50. Kb3 {[%clk 0:01:36.8]} 50... Kb5 {[%clk 0:02:22.9]} 51. Kb2 {[%clk
0:01:34.2]} 51... Ka4 {[%clk 0:02:21.2]} 52. Ka2 {[%clk 0:01:29.2]} 52... Rxc3
{[%clk 0:02:17.2]} 53. Kb2 {[%clk 0:01:28.1]} 53... Rc5 {[%clk 0:02:14]} 54. Ka2
{[%clk 0:01:26.6]} 54... Rb5 {[%clk 0:02:12.1]} 55. Ka1 {[%clk 0:01:25.2]} 55...
c5 {[%clk 0:02:09.5]} 56. Ka2 {[%clk 0:01:23.4]} 56... c4 {[%clk 0:02:09.4]} 57.
Ka1 {[%clk 0:01:21.8]} 57... c3 {[%clk 0:02:09.3]} 58. Ka2 {[%clk 0:01:20.8]}
58... c2 {[%clk 0:02:08.1]} 59. Ka1 {[%clk 0:01:19.8]} 59... c1=Q+ {[%clk
0:01:54]} 60. Ka2 {[%clk 0:01:18.2]} 60... Be6# {[%clk 0:01:51.1]} 0-1

[Event "Live Chess"]
[Site "Chess.com"]
[Date "2023.05.20"]
[Round "-"]
[White "apl_trainer"]
[Black "Andysav3"]
[Result "1-0"]
[WhiteElo "1685"]
[BlackElo "1689"]
[TimeControl "300"]
[EndTime "12:48:13 PDT"]
[Termination "apl_trainer won by resignation"]

1. d4 {[%clk 0:04:58.5]} 1... Nf6 {[%clk 0:04:58.4]} 2. c4 {[%clk 0:04:56.8]}
2... e5 {[%clk 0:04:57.4]} 3. dxe5 {[%clk 0:04:54.9]} 3... Ng4 {[%clk
0:04:56.5]} 4. Bf4 {[%clk 0:04:52.7]} 4... g5 {[%clk 0:04:54.7]} 5. Bg3 {[%clk
0:04:50.5]} 5... Bg7 {[%clk 0:04:50.4]} 6. Nf3 {[%clk 0:04:47.2]} 6... Nc6
{[%clk 0:04:40.7]} 7. Qd5 {[%clk 0:04:34.3]} 7... Qe7 {[%clk 0:04:08]} 8. Nc3
{[%clk 0:04:26.7]} 8... Ngxe5 {[%clk 0:04:01.8]} 9. Nxe5 {[%clk 0:04:21.1]} 9...
Nxe5 {[%clk 0:03:59.2]} 10. h4 {[%clk 0:04:19.2]} 10... g4 {[%clk 0:03:44]} 11.
h5 {[%clk 0:04:07.4]} 11... h6 {[%clk 0:03:26.7]} 12. e3 {[%clk 0:04:04.4]}
12... d6 {[%clk 0:03:22.8]} 13. Qd2 {[%clk 0:04:00.9]} 13... Be6 {[%clk
0:03:12.8]} 14. Nd5 {[%clk 0:03:58.6]} 14... Qd7 {[%clk 0:03:03.6]} 15. Rc1
{[%clk 0:03:51.4]} 15... c6 {[%clk 0:02:56.4]} 16. Nf4 {[%clk 0:03:49]} 16...
O-O-O {[%clk 0:02:46.8]} 17. Be2 {[%clk 0:03:45.2]} 17... Kb8 {[%clk 0:02:32.3]}
18. O-O {[%clk 0:03:43.5]} 18... Ka8 {[%clk 0:02:14.2]} 19. Rfd1 {[%clk
0:03:37.4]} 19... Rhe8 {[%clk 0:01:56.9]} 20. b4 {[%clk 0:03:35.1]} 20... d5
{[%clk 0:01:49.5]} 21. Nxe6 {[%clk 0:03:30]} 21... fxe6 {[%clk 0:01:43.4]} 22.
b5 {[%clk 0:03:24.1]} 22... Rc8 {[%clk 0:01:32.8]} 23. bxc6 {[%clk 0:03:21.1]}
23... Qxc6 {[%clk 0:01:26.1]} 24. cxd5 {[%clk 0:03:17.1]} 24... Qxd5 {[%clk
0:01:24.2]} 25. Qxd5 {[%clk 0:03:11.7]} 25... exd5 {[%clk 0:01:20.1]} 26. Rxc8+
{[%clk 0:03:08.5]} 26... Rxc8 {[%clk 0:01:18.8]} 27. Rxd5 {[%clk 0:03:06.7]}
27... Nc6 {[%clk 0:01:07.9]} 28. Bxg4 {[%clk 0:03:00.4]} 28... Nb4 {[%clk
0:00:59.9]} 29. Rd7 {[%clk 0:02:47]} 29... Bf6 {[%clk 0:00:47]} 30. Rf7 {[%clk
0:02:43.9]} 30... Rc1+ {[%clk 0:00:41.3]} 31. Kh2 {[%clk 0:02:42.1]} 1-0

[Event "Live Chess"]
[Site "Chess.com"]
[Date "2023.05.20"]
[Round "-"]
[White "Olisingapore"]
[Black "Greenbecker"]
[Result "1/2-1/2"]
[WhiteElo "1896"]
[BlackElo "1641"]
[TimeControl "300"]
[EndTime "12:48:13 PDT"]
[Termination "Game drawn by agreement"]

1. d4 {[%clk 0:04:56.9]} 1... d5 {[%clk 0:04:58.4]} 2. c4 {[%clk 0:04:56.3]}
2... e6 {[%clk 0:04:56.9]} 3. Nf3 {[%clk 0:04:55.7]} 3... Nf6 {[%clk 0:04:55.8]}
4. g3 {[%clk 0:04:55.2]} 4... Bb4+ {[%clk 0:04:54.7]} 5. Nbd2 {[%clk 0:04:54.1]}
5... Ne4 {[%clk 0:04:53.7]} 6. Bg2 {[%clk 0:04:50.9]} 6... Nxd2 {[%clk
0:04:52.4]} 7. Bxd2 {[%clk 0:04:50.8]} 7... Bxd2+ {[%clk 0:04:51.7]} 8. Qxd2
{[%clk 0:04:50.7]} 8... c6 {[%clk 0:04:51.3]} 9. O-O {[%clk 0:04:49.3]} 9... O-O
{[%clk 0:04:50]} 10. Qc2 {[%clk 0:04:41.8]} 10... Nd7 {[%clk 0:04:48.9]} 11. e4
{[%clk 0:04:38.7]} 11... b6 {[%clk 0:04:46.8]} 12. Rfe1 {[%clk 0:04:35.2]} 12...
Bb7 {[%clk 0:04:45.9]} 13. Ne5 {[%clk 0:04:32.5]} 13... Nxe5 {[%clk 0:04:44.6]}
14. dxe5 {[%clk 0:04:32.4]} 14... Rc8 {[%clk 0:04:42.3]} 15. exd5 {[%clk
0:04:31.4]} 15... cxd5 {[%clk 0:04:41.4]} 16. Qa4 {[%clk 0:04:23.7]} 16... Rxc4
{[%clk 0:04:38.2]} 17. Qxa7 {[%clk 0:04:21.1]} 17... Qc7 {[%clk 0:04:34.6]} 18.
Qa3 {[%clk 0:04:03.1]} 18... Rc8 {[%clk 0:04:29.1]} 19. b3 {[%clk 0:03:56.8]}
19... Rc5 {[%clk 0:04:18]} 20. Qa4 {[%clk 0:03:49.5]} 20... Bc6 {[%clk
0:04:08.9]} 21. Qf4 {[%clk 0:03:31.7]} 21... Be8 {[%clk 0:03:52.2]} 22. Bf1
{[%clk 0:03:25.6]} 22... Rc2 {[%clk 0:03:41.7]} 23. Bd3 {[%clk 0:03:20.6]} 23...
Rc3 {[%clk 0:03:37.8]} 24. Rac1 {[%clk 0:03:10.3]} 24... Rxc1 {[%clk 0:03:33.4]}
25. Rxc1 {[%clk 0:03:10.2]} 25... Qd7 {[%clk 0:03:29.4]} 26. a4 {[%clk
0:02:48.8]} 26... Rxc1+ {[%clk 0:03:27]} 27. Qxc1 {[%clk 0:02:46]} 27... Qc6
{[%clk 0:03:25.3]} 28. Qxc6 {[%clk 0:02:43.8]} 28... Bxc6 {[%clk 0:03:24.4]} 29.
Kf1 {[%clk 0:02:41.2]} 29... Kf8 {[%clk 0:03:23.6]} 30. Ke2 {[%clk 0:02:40.7]}
30... Ke7 {[%clk 0:03:22.2]} 31. Ke3 {[%clk 0:02:40.2]} 31... g6 {[%clk
0:03:19.9]} 32. f4 {[%clk 0:02:38.9]} 32... f6 {[%clk 0:03:19.1]} 33. Kd4 {[%clk
0:02:37]} 33... f5 {[%clk 0:03:13.3]} 34. Bb5 {[%clk 0:02:35]} 34... Kd7 {[%clk
0:03:11.5]} 35. Bxc6+ {[%clk 0:02:33.2]} 35... Kxc6 {[%clk 0:03:09.8]} 36. b4
{[%clk 0:02:30.8]} 36... h6 {[%clk 0:03:07.2]} 37. h4 {[%clk 0:02:28.9]} 37...
h5 {[%clk 0:03:05.1]} 38. Kd3 {[%clk 0:02:07.9]} 38... Kc7 {[%clk 0:02:55.1]}
39. Kd4 {[%clk 0:02:04.7]} 39... Kc6 {[%clk 0:02:53.4]} 40. Kc3 {[%clk
0:02:02.2]} 40... Kc7 {[%clk 0:02:51.9]} 41. b5 {[%clk 0:02:00]} 41... Kb7
{[%clk 0:02:48.2]} 42. Kb4 {[%clk 0:01:57.3]} 42... Kc7 {[%clk 0:02:44.4]} 43.
a5 {[%clk 0:01:54.2]} 43... bxa5+ {[%clk 0:02:43]} 44. Kxa5 {[%clk 0:01:52.4]}
44... Kb7 {[%clk 0:02:32.9]} 45. b6 {[%clk 0:01:50.2]} 45... d4 {[%clk
0:02:30.9]} 46. Kb4 {[%clk 0:01:45.5]} 46... d3 {[%clk 0:02:29.6]} 47. Kc3
{[%clk 0:01:43.6]} 47... d2 {[%clk 0:02:28.9]} 48. Kxd2 {[%clk 0:01:43.1]} 48...
Kxb6 {[%clk 0:02:28.3]} 49. Kd3 {[%clk 0:01:42.9]} 49... Kc5 {[%clk 0:02:25.2]}
50. Ke3 {[%clk 0:01:38.8]} 50... Kd5 {[%clk 0:02:22]} 51. Kd3 {[%clk 0:01:37.2]}
51... Kc5 {[%clk 0:02:20.9]} 1/2-1/2

[Event "Live Chess"]
[Site "Chess.com"]
[Date "2023.05.20"]
[Round "-"]
[White "Doge_Dandolo"]
[Black "EdvancedChess"]
[Result "1-0"]
[WhiteElo "2018"]
[BlackElo "1914"]
[TimeControl "300"]
[EndTime "12:48:28 PDT"]
[Termination "Doge_Dandolo won by resignation"]

1. Nf3 {[%clk 0:04:58.4]} 1... Nf6 {[%clk 0:04:58.5]} 2. c4 {[%clk 0:04:56.4]}
2... e6 {[%clk 0:04:56.4]} 3. g3 {[%clk 0:04:52.7]} 3... d5 {[%clk 0:04:55.9]}
4. Bg2 {[%clk 0:04:51.9]} 4... c6 {[%clk 0:04:54.8]} 5. O-O {[%clk 0:04:50.8]}
5... Be7 {[%clk 0:04:53.9]} 6. d4 {[%clk 0:04:49.5]} 6... O-O {[%clk 0:04:53]}
7. Qc2 {[%clk 0:04:48.7]} 7... Nbd7 {[%clk 0:04:52]} 8. Nbd2 {[%clk 0:04:47.9]}
8... h6 {[%clk 0:04:49.5]} 9. e4 {[%clk 0:04:46.8]} 9... dxe4 {[%clk 0:04:40.8]}
10. Nxe4 {[%clk 0:04:45.8]} 10... Nb6 {[%clk 0:04:40.7]} 11. Rd1 {[%clk
0:04:43.1]} 11... Re8 {[%clk 0:04:39.1]} 12. Ne5 {[%clk 0:04:40.2]} 12... Qc7
{[%clk 0:04:36.3]} 13. Bf4 {[%clk 0:04:38.4]} 13... Qd8 {[%clk 0:04:22.1]} 14.
a4 {[%clk 0:04:29.3]} 14... a5 {[%clk 0:04:19.1]} 15. h3 {[%clk 0:04:12.5]}
15... Nh5 {[%clk 0:04:07.4]} 16. Be3 {[%clk 0:04:10.7]} 16... f5 {[%clk
0:04:05.4]} 17. Nc5 {[%clk 0:04:04.9]} 17... Nf6 {[%clk 0:03:58.4]} 18. Qb3
{[%clk 0:03:58]} 18... Nbd7 {[%clk 0:03:49.6]} 19. Nxe6 {[%clk 0:03:55.7]} 19...
Nxe5 {[%clk 0:03:41.2]} 20. Nxd8 {[%clk 0:03:53.6]} 20... Ng6 {[%clk 0:03:23.3]}
21. Nxb7 {[%clk 0:03:47.7]} 21... Rb8 {[%clk 0:03:22.1]} 22. Bxc6 {[%clk
0:03:46.4]} 22... Bxb7 {[%clk 0:03:10.1]} 23. Bxb7 {[%clk 0:03:44.4]} 23... Ne4
{[%clk 0:03:05]} 24. Bd5+ {[%clk 0:03:35.3]} 24... Kh7 {[%clk 0:03:02.9]} 25.
Qd3 {[%clk 0:03:32.6]} 25... Bb4 {[%clk 0:02:55.3]} 26. g4 {[%clk 0:03:31]}
26... Nf6 {[%clk 0:02:11.4]} 27. gxf5 {[%clk 0:03:26.7]} 27... Nh4 {[%clk
0:02:09.6]} 28. Bc6 {[%clk 0:03:17.2]} 28... Re7 {[%clk 0:01:58.6]} 29. d5
{[%clk 0:03:15.3]} 29... Nf3+ {[%clk 0:01:53.9]} 30. Kg2 {[%clk 0:03:11.6]}
30... Ne5 {[%clk 0:01:52.8]} 31. Qc2 {[%clk 0:03:05.5]} 31... Rf8 {[%clk
0:01:28]} 32. d6 {[%clk 0:02:59.1]} 32... Ref7 {[%clk 0:01:22.4]} 33. Bb5 {[%clk
0:02:53.4]} 33... Nh5 {[%clk 0:01:16.2]} 34. Bd4 {[%clk 0:02:44.4]} 34... Nd7
{[%clk 0:01:00.1]} 35. f6+ {[%clk 0:02:38.4]} 35... g6 {[%clk 0:00:59]} 36. c5
{[%clk 0:02:26.1]} 36... Ndxf6 {[%clk 0:00:48.3]} 37. Bxf6 {[%clk 0:02:23.5]}
37... Rxf6 {[%clk 0:00:47.1]} 38. d7 {[%clk 0:02:21.8]} 38... Nf4+ {[%clk
0:00:44.3]} 39. Kh2 {[%clk 0:02:17.9]} 39... Rd8 {[%clk 0:00:35.8]} 40. c6
{[%clk 0:02:15.2]} 40... Ne6 {[%clk 0:00:21.5]} 41. c7 {[%clk 0:02:08.4]} 41...
Nxc7 {[%clk 0:00:20]} 42. Qxc7 {[%clk 0:02:06.6]} 42... Bd6+ {[%clk 0:00:18.3]}
43. Qxd6 {[%clk 0:02:04.1]} 43... Rdf8 {[%clk 0:00:18.2]} 1-0

[Event "Live Chess"]
[Site "Chess.com"]
[Date "2023.05.20"]
[Round "-"]
[White "EdenHazard8"]
[Black "chessfiction"]
[Result "0-1"]
[WhiteElo "2094"]
[BlackElo "2420"]
[TimeControl "300"]
[EndTime "12:48:31 PDT"]
[Termination "chessfiction won by resignation"]

1. e4 {[%clk 0:04:59]} 1... e6 {[%clk 0:04:58.2]} 2. d4 {[%clk 0:04:57.9]} 2...
d5 {[%clk 0:04:58.1]} 3. Nd2 {[%clk 0:04:57.3]} 3... c5 {[%clk 0:04:56.3]} 4.
Ngf3 {[%clk 0:04:55.2]} 4... cxd4 {[%clk 0:04:54.7]} 5. Nxd4 {[%clk 0:04:55.1]}
5... Nf6 {[%clk 0:04:52.1]} 6. exd5 {[%clk 0:04:53.3]} 6... Qxd5 {[%clk
0:04:49.9]} 7. N2f3 {[%clk 0:04:47.4]} 7... Bc5 {[%clk 0:04:48.5]} 8. Be3 {[%clk
0:04:42.3]} 8... O-O {[%clk 0:04:46.5]} 9. c4 {[%clk 0:04:25.5]} 9... Qh5 {[%clk
0:04:44.8]} 10. Qc2 {[%clk 0:04:13.6]} 10... e5 {[%clk 0:04:41]} 11. Nb3 {[%clk
0:04:11.4]} 11... Bf5 {[%clk 0:04:37.3]} 12. Qc3 {[%clk 0:04:06.7]} 12... Ne4
{[%clk 0:04:29.5]} 13. Qxe5 {[%clk 0:03:44.9]} 13... Nc6 {[%clk 0:04:25.5]} 14.
Qf4 {[%clk 0:03:40.4]} 14... Bb4+ {[%clk 0:04:16.8]} 15. Nfd2 {[%clk 0:03:37.8]}
15... Rfe8 {[%clk 0:04:07.4]} 16. Be2 {[%clk 0:03:34.6]} 16... Qg6 {[%clk
0:04:02]} 17. O-O {[%clk 0:03:29.5]} 17... Nxd2 {[%clk 0:03:51.6]} 18. Nxd2
{[%clk 0:03:27.4]} 18... Bxd2 {[%clk 0:03:50.2]} 19. Bxd2 {[%clk 0:03:27.3]}
19... Rxe2 {[%clk 0:03:48.9]} 20. Be3 {[%clk 0:03:25.5]} 20... Re8 {[%clk
0:03:34.8]} 21. Rad1 {[%clk 0:03:23.1]} 21... R8xe3 {[%clk 0:03:32.9]} 22. g4
{[%clk 0:03:00]} 22... Qxg4+ {[%clk 0:03:23.1]} 23. Qxg4 {[%clk 0:02:57.6]}
23... Bxg4 {[%clk 0:03:23]} 24. fxe3 {[%clk 0:02:56.7]} 24... Rxe3 {[%clk
0:03:18.3]} 25. Rd6 {[%clk 0:02:52.3]} 25... h5 {[%clk 0:03:15.1]} 26. b4 {[%clk
0:02:34.5]} 26... Nxb4 {[%clk 0:03:11.8]} 27. Rd8+ {[%clk 0:02:32.9]} 27... Kh7
{[%clk 0:03:10.5]} 28. Rxf7 {[%clk 0:02:32.8]} 28... Nd3 {[%clk 0:02:58]} 29.
Rxb7 {[%clk 0:02:28.1]} 29... Bh3 {[%clk 0:02:50.6]} 30. Rb1 {[%clk 0:02:18.3]}
30... Nf4 {[%clk 0:02:34.5]} 31. Kf2 {[%clk 0:02:09.7]} 31... Ra3 {[%clk
0:02:33.1]} 32. Rb3 {[%clk 0:01:58.6]} 32... Rxa2+ {[%clk 0:02:31.7]} 33. Kg3
{[%clk 0:01:57.3]} 33... g5 {[%clk 0:02:18.5]} 34. Rb7+ {[%clk 0:01:53.7]} 34...
Kg6 {[%clk 0:02:17.4]} 35. Rbb8 {[%clk 0:01:53.6]} 35... h4+ {[%clk 0:02:06.3]}
36. Kf3 {[%clk 0:01:51.8]} 36... Ra3+ {[%clk 0:01:48]} 37. Ke4 {[%clk
0:01:49.6]} 37... Bf5+ {[%clk 0:01:47]} 38. Kd4 {[%clk 0:01:46.6]} 38... Ne6+
{[%clk 0:01:44.3]} 39. Ke5 {[%clk 0:01:45.3]} 39... Nxd8 {[%clk 0:01:43.4]} 40.
Rxd8 {[%clk 0:01:43.7]} 40... Re3+ {[%clk 0:01:42.2]} 41. Kd6 {[%clk 0:01:37.7]}
41... Rd3+ {[%clk 0:01:41.2]} 42. Kc7 {[%clk 0:01:37.6]} 42... Rxd8 {[%clk
0:01:40.7]} 43. Kxd8 {[%clk 0:01:37.5]} 43... a5 {[%clk 0:01:39.8]} 44. c5
{[%clk 0:01:37.4]} 44... a4 {[%clk 0:01:39.7]} 45. c6 {[%clk 0:01:37.2]} 45...
a3 {[%clk 0:01:39.2]} 46. c7 {[%clk 0:01:37.1]} 46... a2 {[%clk 0:01:38.8]} 47.
c8=Q {[%clk 0:01:36.7]} 47... Bxc8 {[%clk 0:01:37.8]} 48. Kxc8 {[%clk
0:01:36.6]} 48... a1=Q {[%clk 0:01:37.1]} 49. Kd7 {[%clk 0:01:36.5]} 49... Qe5
{[%clk 0:01:36.5]} 0-1

[Event "Live Chess"]
[Site "Chess.com"]
[Date "2023.05.20"]
[Round "-"]
[White "Ferrarifan27"]
[Black "Tushinskiy"]
[Result "0-1"]
[WhiteElo "2059"]
[BlackElo "2105"]
[TimeControl "300"]
[EndTime "12:48:44 PDT"]
[Termination "Tushinskiy won by resignation"]

1. e4 {[%clk 0:04:57.7]} 1... e5 {[%clk 0:04:59.1]} 2. Nf3 {[%clk 0:04:55.6]}
2... d6 {[%clk 0:04:59]} 3. d4 {[%clk 0:04:51.1]} 3... Bg4 {[%clk 0:04:50.6]} 4.
dxe5 {[%clk 0:04:49]} 4... Nd7 {[%clk 0:04:49.6]} 5. exd6 {[%clk 0:04:46.1]}
5... Bxd6 {[%clk 0:04:49.5]} 6. Be2 {[%clk 0:04:42.7]} 6... Qe7 {[%clk
0:04:48.4]} 7. h3 {[%clk 0:04:39]} 7... Bh5 {[%clk 0:04:45]} 8. Nc3 {[%clk
0:04:37.1]} 8... Ngf6 {[%clk 0:04:43.9]} 9. Bg5 {[%clk 0:04:34.8]} 9... O-O-O
{[%clk 0:04:43.1]} 10. Nd5 {[%clk 0:04:31.6]} 10... Qxe4 {[%clk 0:04:41.3]} 11.
Nxf6 {[%clk 0:04:28.2]} 11... Nxf6 {[%clk 0:04:41.2]} 12. Bxf6 {[%clk
0:04:27.5]} 12... Bb4+ {[%clk 0:04:40.4]} 13. Nd2 {[%clk 0:04:18.8]} 13... Rxd2
{[%clk 0:04:34.8]} 14. Qxd2 {[%clk 0:04:14.4]} 14... Bxd2+ {[%clk 0:04:33.1]}
0-1

[Event "Live Chess"]
[Site "Chess.com"]
[Date "2023.05.20"]
[Round "-"]
[White "SupremeTactician"]
[Black "KeithArkell"]
[Result "1/2-1/2"]
[WhiteElo "2376"]
[BlackElo "2610"]
[TimeControl "300"]
[EndTime "12:48:52 PDT"]
[Termination "Game drawn by repetition"]

1. e4 {[%clk 0:04:57.2]} 1... c6 {[%clk 0:04:58.6]} 2. d4 {[%clk 0:04:55.6]}
2... d5 {[%clk 0:04:58]} 3. Nc3 {[%clk 0:04:54.6]} 3... dxe4 {[%clk 0:04:57.2]}
4. Nxe4 {[%clk 0:04:54.5]} 4... Nd7 {[%clk 0:04:56.6]} 5. Ng5 {[%clk 0:04:53.2]}
5... Ngf6 {[%clk 0:04:55.6]} 6. Bd3 {[%clk 0:04:50.6]} 6... Nb6 {[%clk
0:04:54.9]} 7. c3 {[%clk 0:04:48]} 7... h6 {[%clk 0:04:44.6]} 8. Ne4 {[%clk
0:04:39.8]} 8... Nxe4 {[%clk 0:04:43.6]} 9. Bxe4 {[%clk 0:04:39.7]} 9... Nd5
{[%clk 0:04:42.2]} 10. Nf3 {[%clk 0:04:37.1]} 10... Nf6 {[%clk 0:04:41.2]} 11.
Bc2 {[%clk 0:04:32.7]} 11... Bg4 {[%clk 0:04:40.3]} 12. h3 {[%clk 0:04:25.2]}
12... Bxf3 {[%clk 0:04:39.2]} 13. Qxf3 {[%clk 0:04:23.8]} 13... e6 {[%clk
0:04:38.3]} 14. Bf4 {[%clk 0:04:21.2]} 14... Qd5 {[%clk 0:04:35.3]} 15. Qe2
{[%clk 0:04:13.6]} 15... Qxg2 {[%clk 0:04:31.7]} 16. O-O-O {[%clk 0:04:12.6]}
16... Qd5 {[%clk 0:04:31]} 17. c4 {[%clk 0:04:07.7]} 17... Qh5 {[%clk
0:04:26.3]} 18. Qe3 {[%clk 0:04:00.5]} 18... Be7 {[%clk 0:04:23.7]} 19. Rdg1
{[%clk 0:03:51.8]} 19... b5 {[%clk 0:04:16.3]} 20. Bd1 {[%clk 0:03:42.1]} 20...
Qf5 {[%clk 0:04:13.2]} 21. Bc2 {[%clk 0:03:41.1]} 21... Qh5 {[%clk 0:04:10.3]}
22. Bd1 {[%clk 0:03:40]} 22... Qf5 {[%clk 0:04:02.9]} 23. Bc2 {[%clk 0:03:35.4]}
23... Qh5 {[%clk 0:03:59.3]} 1/2-1/2